[Event "*** Titled Tuesday Blitz"]
[Site "Chess.com"]
[Date "2021.03.09"]
[Round "6"]
[White "CarrotsandPizza"]
[Black "Love_craft"]
[Result "0-1"]
[WhiteElo "2396"]
[BlackElo "2549"]
[TimeControl "180+1"]
[EndTime "11:11:36 PST"]
[Termination "Love_craft won on time"]

1. e4 {[%clk 0:02:49.7]} 1... g6 {[%clk 0:02:43.2]} 2. d4 {[%clk 0:02:47.4]}
2... Bg7 {[%clk 0:02:42.3]} 3. Nc3 {[%clk 0:02:36.6]} 3... d6 {[%clk 0:02:42.3]}
4. f4 {[%clk 0:02:36.7]} 4... a6 {[%clk 0:02:39.2]} 5. Nf3 {[%clk 0:01:49.4]}
5... b5 {[%clk 0:02:39]} 6. e5 {[%clk 0:01:46.4]} 6... e6 {[%clk 0:02:36.8]} 7.
Bd3 {[%clk 0:01:45.1]} 7... Bb7 {[%clk 0:02:37.1]} 8. Ne4 {[%clk 0:01:44.4]}
8... Ne7 {[%clk 0:02:36.9]} 9. O-O {[%clk 0:01:43.7]} 9... Nf5 {[%clk 0:02:36]}
10. c3 {[%clk 0:01:40.1]} 10... h5 {[%clk 0:02:34.1]} 11. Bd2 {[%clk 0:01:31.3]}
11... Nd7 {[%clk 0:02:31.6]} 12. a4 {[%clk 0:01:30.6]} 12... O-O {[%clk
0:02:26.7]} 13. Qe2 {[%clk 0:01:24.1]} 13... c5 {[%clk 0:02:20]} 14. axb5 {[%clk
0:01:19.2]} 14... axb5 {[%clk 0:02:16.8]} 15. Bxb5 {[%clk 0:01:14.8]} 15... cxd4
{[%clk 0:02:13]} 16. cxd4 {[%clk 0:01:12]} 16... dxe5 {[%clk 0:02:10.2]} 17.
fxe5 {[%clk 0:01:11.6]} 17... Nxe5 {[%clk 0:02:01]} 18. dxe5 {[%clk 0:00:54.9]}
18... Bxe4 {[%clk 0:01:46.9]} 19. Qxe4 {[%clk 0:00:53.1]} 19... Qb6+ {[%clk
0:01:34.5]} 20. Kh1 {[%clk 0:00:50.8]} 20... Qxb5 {[%clk 0:01:33.8]} 21. Qxa8
{[%clk 0:00:41.7]} 21... Qxf1+ {[%clk 0:01:30.1]} 22. Rxf1 {[%clk 0:00:40.4]}
22... Rxa8 {[%clk 0:01:30.3]} 23. b4 {[%clk 0:00:38.9]} 23... Ra2 {[%clk
0:01:25.2]} 24. Rb1 {[%clk 0:00:36.2]} 24... Bxe5 {[%clk 0:00:30.9]} 25. Nxe5
{[%clk 0:00:33.8]} 25... Rxd2 {[%clk 0:00:30.7]} 26. b5 {[%clk 0:00:34.3]} 26...
Nd6 {[%clk 0:00:26.7]} 27. b6 {[%clk 0:00:31.8]} 27... Kg7 {[%clk 0:00:22.1]}
28. Kg1 {[%clk 0:00:30.2]} 28... Nb7 {[%clk 0:00:20.5]} 29. Rc1 {[%clk
0:00:23.1]} 29... Rb2 {[%clk 0:00:17.7]} 30. Rc7 {[%clk 0:00:15.5]} 30... Rxb6
{[%clk 0:00:11.8]} 31. Rxf7+ {[%clk 0:00:15.1]} 31... Kh6 {[%clk 0:00:10.1]} 32.
h4 {[%clk 0:00:13.6]} 32... Rb5 {[%clk 0:00:07.7]} 33. Nf3 {[%clk 0:00:12.8]}
33... Nd6 {[%clk 0:00:06.9]} 34. Rd7 {[%clk 0:00:12.2]} 34... Ne4 {[%clk
0:00:06]} 35. Kh2 {[%clk 0:00:11.2]} 35... Rb2 {[%clk 0:00:05.1]} 36. Re7 {[%clk
0:00:09.7]} 36... Rb6 {[%clk 0:00:04.5]} 37. Kh3 {[%clk 0:00:08.8]} 37... g5
{[%clk 0:00:04.4]} 38. g3 {[%clk 0:00:05]} 38... g4+ {[%clk 0:00:04.5]} 39. Kg2
{[%clk 0:00:04]} 39... gxf3+ {[%clk 0:00:04.1]} 40. Kxf3 {[%clk 0:00:04.9]}
40... Nf6 {[%clk 0:00:04.5]} 41. Kf4 {[%clk 0:00:04]} 41... Kg6 {[%clk
0:00:04.8]} 42. Ke5 {[%clk 0:00:04.9]} 42... Ng4+ {[%clk 0:00:04.9]} 43. Kf4
{[%clk 0:00:04.5]} 43... Kf6 {[%clk 0:00:05.1]} 44. Rh7 {[%clk 0:00:03.9]} 44...
Rb4+ {[%clk 0:00:05.3]} 45. Kf3 {[%clk 0:00:02.9]} 45... Rb3+ {[%clk 0:00:05.6]}
46. Kf4 {[%clk 0:00:02.7]} 46... e5+ {[%clk 0:00:05.5]} 47. Ke4 {[%clk
0:00:03.1]} 47... Rb4+ {[%clk 0:00:05.7]} 48. Kf3 {[%clk 0:00:02.7]} 48... e4+
{[%clk 0:00:05.2]} 49. Kf4 {[%clk 0:00:01.5]} 49... e3+ {[%clk 0:00:04.9]} 50.
Kf3 {[%clk 0:00:02.1]} 50... Kg6 {[%clk 0:00:05.4]} 51. Re7 {[%clk 0:00:01.9]}
51... Rb2 {[%clk 0:00:05.4]} 52. Re6+ {[%clk 0:00:02]} 52... Kf5 {[%clk
0:00:05.8]} 0-1

[Event "*** Titled Tuesday Blitz"]
[Site "Chess.com"]
[Date "2021.03.09"]
[Round "6"]
[White "GigaQuparadze"]
[Black "jacky72"]
[Result "1-0"]
[WhiteElo "2968"]
[BlackElo "2733"]
[TimeControl "180+1"]
[EndTime "11:11:37 PST"]
[Termination "GigaQuparadze won by resignation"]

1. e4 {[%clk 0:03:00.9]} 1... e5 {[%clk 0:02:58.8]} 2. Nf3 {[%clk 0:03:00.6]}
2... Nc6 {[%clk 0:02:59.1]} 3. Bb5 {[%clk 0:03:00]} 3... a6 {[%clk 0:02:59.4]}
4. Ba4 {[%clk 0:03:00]} 4... d6 {[%clk 0:03:00.3]} 5. c3 {[%clk 0:02:59.6]} 5...
Bd7 {[%clk 0:03:00.8]} 6. d4 {[%clk 0:02:59.2]} 6... g6 {[%clk 0:03:00.5]} 7.
Bg5 {[%clk 0:02:55.1]} 7... f6 {[%clk 0:03:00]} 8. Be3 {[%clk 0:02:55.1]} 8...
Bg7 {[%clk 0:03:00.5]} 9. Qd2 {[%clk 0:02:54.1]} 9... Nge7 {[%clk 0:02:58.1]}
10. Bh6 {[%clk 0:02:48.8]} 10... O-O {[%clk 0:02:57.1]} 11. Bb3+ {[%clk
0:02:48.1]} 11... Kh8 {[%clk 0:02:57.4]} 12. h4 {[%clk 0:02:28.7]} 12... Na5
{[%clk 0:02:45.3]} 13. Bxg7+ {[%clk 0:02:24.9]} 13... Kxg7 {[%clk 0:02:44.1]}
14. h5 {[%clk 0:02:25.2]} 14... Nxb3 {[%clk 0:02:40]} 15. axb3 {[%clk
0:02:26.1]} 15... g5 {[%clk 0:02:33.6]} 16. dxe5 {[%clk 0:02:26]} 16... dxe5
{[%clk 0:02:32.7]} 17. Nxe5 {[%clk 0:02:19]} 17... fxe5 {[%clk 0:02:15.5]} 18.
Qxg5+ {[%clk 0:02:18.2]} 18... Kf7 {[%clk 0:02:16]} 19. Qxe5 {[%clk 0:02:18.2]}
19... Nc6 {[%clk 0:02:11.4]} 20. Qf4+ {[%clk 0:02:17.2]} 20... Kg8 {[%clk
0:02:06.5]} 21. Qg3+ {[%clk 0:02:13.3]} 21... Kh8 {[%clk 0:02:06.5]} 22. Nd2
{[%clk 0:02:13.4]} 22... Rg8 {[%clk 0:02:00.4]} 23. Qf4 {[%clk 0:02:07.4]} 23...
Rf8 {[%clk 0:02:00.1]} 24. Qe3 {[%clk 0:01:55]} 24... Qf6 {[%clk 0:01:57]} 25.
Nf3 {[%clk 0:01:51.1]} 25... Bg4 {[%clk 0:01:46.7]} 26. Nd4 {[%clk 0:01:50.9]}
26... Rae8 {[%clk 0:01:33.2]} 27. f3 {[%clk 0:01:49.1]} 27... Be6 {[%clk
0:01:16.4]} 28. Nxc6 {[%clk 0:01:44.5]} 28... bxc6 {[%clk 0:01:16.4]} 29. b4
{[%clk 0:01:35.7]} 29... Bc4 {[%clk 0:01:15.1]} 30. O-O-O {[%clk 0:01:15.4]}
30... Rg8 {[%clk 0:01:01.8]} 31. g4 {[%clk 0:01:12.7]} 31... Rgf8 {[%clk
0:00:56.7]} 32. Rh3 {[%clk 0:01:12.1]} 32... Re5 {[%clk 0:00:50]} 33. Rd7 {[%clk
0:01:05]} 33... a5 {[%clk 0:00:38.4]} 34. Qd4 {[%clk 0:00:58.7]} 34... Be2
{[%clk 0:00:31.9]} 35. Rxc7 {[%clk 0:00:54.1]} 35... axb4 {[%clk 0:00:26]} 36.
Rxc6 {[%clk 0:00:50.5]} 36... Qxc6 {[%clk 0:00:14.7]} 37. Qxe5+ {[%clk
0:00:50.1]} 37... Qf6 {[%clk 0:00:15.6]} 38. Qxf6+ {[%clk 0:00:47]} 38... Rxf6
{[%clk 0:00:16.5]} 39. g5 {[%clk 0:00:31.9]} 39... Rxf3 {[%clk 0:00:14.1]} 40.
Rh2 {[%clk 0:00:30.4]} 40... Bd3 {[%clk 0:00:12.4]} 41. cxb4 {[%clk 0:00:30.2]}
41... Bxe4 {[%clk 0:00:11.9]} 42. Rh4 {[%clk 0:00:24.5]} 42... Bf5 {[%clk
0:00:09.8]} 43. Rd4 {[%clk 0:00:23.9]} 43... Kg7 {[%clk 0:00:08.7]} 44. Rd6
{[%clk 0:00:20.3]} 44... Rb3 {[%clk 0:00:06.2]} 45. h6+ {[%clk 0:00:19.9]} 45...
Kf7 {[%clk 0:00:06.5]} 46. Rf6+ {[%clk 0:00:19.9]} 46... Ke7 {[%clk 0:00:07.1]}
47. Rxf5 {[%clk 0:00:20.4]} 47... Rxb4 {[%clk 0:00:08]} 48. Re5+ {[%clk
0:00:20.3]} 48... Kf7 {[%clk 0:00:07.9]} 49. Kc2 {[%clk 0:00:20.8]} 49... Kg6
{[%clk 0:00:08.1]} 50. b3 {[%clk 0:00:21]} 50... Rf4 {[%clk 0:00:07.8]} 51. Kc3
{[%clk 0:00:21.1]} 51... Rg4 {[%clk 0:00:08.3]} 52. b4 {[%clk 0:00:20.8]} 52...
Rxg5 {[%clk 0:00:08.9]} 53. Rxg5+ {[%clk 0:00:20.6]} 53... Kxg5 {[%clk
0:00:09.8]} 54. b5 {[%clk 0:00:21.5]} 54... Kxh6 {[%clk 0:00:10.7]} 55. b6
{[%clk 0:00:21.9]} 55... Kg5 {[%clk 0:00:11.6]} 56. b7 {[%clk 0:00:22.8]} 56...
h5 {[%clk 0:00:12.5]} 57. b8=Q {[%clk 0:00:23.7]} 57... h4 {[%clk 0:00:13.4]}
58. Kd2 {[%clk 0:00:24.1]} 58... Kg4 {[%clk 0:00:14.3]} 59. Ke2 {[%clk
0:00:24.5]} 59... h3 {[%clk 0:00:15.2]} 60. Kf1 {[%clk 0:00:24.8]} 60... Kf3
{[%clk 0:00:15.4]} 61. Qh2 {[%clk 0:00:25.3]} 61... Kg4 {[%clk 0:00:15.5]} 62.
Kf2 {[%clk 0:00:25.8]} 62... Kh4 {[%clk 0:00:16.4]} 63. Qg3+ {[%clk 0:00:26.4]}
63... Kh5 {[%clk 0:00:16.2]} 64. Qxh3+ {[%clk 0:00:27.3]} 1-0

[Event "*** Titled Tuesday Blitz"]
[Site "Chess.com"]
[Date "2021.03.09"]
[Round "6"]
[White "esapunov"]
[Black "Meri-Arabidze"]
[Result "1/2-1/2"]
[WhiteElo "2738"]
[BlackElo "2577"]
[TimeControl "180+1"]
[EndTime "11:11:37 PST"]
[Termination "Game drawn by repetition"]

1. c4 {[%clk 0:03:00.9]} 1... e6 {[%clk 0:02:59.4]} 2. Nf3 {[%clk 0:03:01]} 2...
d5 {[%clk 0:02:59.9]} 3. d4 {[%clk 0:03:01.2]} 3... Nf6 {[%clk 0:03:00.1]} 4.
Nc3 {[%clk 0:03:01.4]} 4... Nbd7 {[%clk 0:03:00.7]} 5. Bg5 {[%clk 0:03:01.2]}
5... h6 {[%clk 0:03:00.6]} 6. Bh4 {[%clk 0:03:01]} 6... Be7 {[%clk 0:03:00.8]}
7. e3 {[%clk 0:03:01.3]} 7... O-O {[%clk 0:03:00.8]} 8. Rc1 {[%clk 0:03:01.6]}
8... c5 {[%clk 0:03:00.7]} 9. dxc5 {[%clk 0:03:01.1]} 9... Nxc5 {[%clk
0:02:56.9]} 10. cxd5 {[%clk 0:03:00.4]} 10... exd5 {[%clk 0:02:54.5]} 11. Bxf6
{[%clk 0:02:57.1]} 11... Bxf6 {[%clk 0:02:53]} 12. Nxd5 {[%clk 0:02:57.4]} 12...
Ne4 {[%clk 0:02:33.2]} 13. Nxf6+ {[%clk 0:02:34.2]} 13... Qxf6 {[%clk
0:02:34.1]} 14. Qd4 {[%clk 0:02:34.1]} 14... Qg6 {[%clk 0:02:17.2]} 15. Ne5
{[%clk 0:01:41.1]} 15... Qf5 {[%clk 0:02:16.2]} 16. f3 {[%clk 0:01:38]} 16...
Re8 {[%clk 0:02:04.7]} 17. Nd3 {[%clk 0:01:26.7]} 17... Ng5 {[%clk 0:01:48.9]}
18. Kf2 {[%clk 0:01:20.3]} 18... Be6 {[%clk 0:01:34.8]} 19. Rc5 {[%clk
0:01:12.3]} 19... Qg6 {[%clk 0:01:15.7]} 20. Be2 {[%clk 0:00:52.9]} 20... Rad8
{[%clk 0:01:14.9]} 21. Qc3 {[%clk 0:00:53.1]} 21... b6 {[%clk 0:00:51.8]} 22.
Nf4 {[%clk 0:00:49.7]} 22... Qh7 {[%clk 0:00:45.9]} 23. Rc7 {[%clk 0:00:44.1]}
23... Bxa2 {[%clk 0:00:32]} 24. Bd3 {[%clk 0:00:39.2]} 24... Qh8 {[%clk
0:00:18.4]} 25. Rxa7 {[%clk 0:00:38.3]} 25... Bd5 {[%clk 0:00:16]} 26. Rd1
{[%clk 0:00:32.9]} 26... g6 {[%clk 0:00:12]} 27. Qxh8+ {[%clk 0:00:29.1]} 27...
Kxh8 {[%clk 0:00:12.1]} 28. Bb5 {[%clk 0:00:29.3]} 28... Bb3 {[%clk 0:00:10.3]}
29. Rxd8 {[%clk 0:00:24.9]} 29... Rxd8 {[%clk 0:00:11.2]} 30. Ke2 {[%clk
0:00:20.7]} 30... Kg8 {[%clk 0:00:09.8]} 31. h4 {[%clk 0:00:18.3]} 31... Ne6
{[%clk 0:00:09.9]} 32. Nxe6 {[%clk 0:00:18]} 32... Bxe6 {[%clk 0:00:10.8]} 33.
e4 {[%clk 0:00:18]} 33... Rc8 {[%clk 0:00:09]} 34. Kd2 {[%clk 0:00:17.1]} 34...
Bb3 {[%clk 0:00:07.6]} 35. Bd3 {[%clk 0:00:16.9]} 35... h5 {[%clk 0:00:07.9]}
36. Rb7 {[%clk 0:00:16.5]} 36... Rc6 {[%clk 0:00:07.1]} 37. f4 {[%clk
0:00:16.7]} 37... Kg7 {[%clk 0:00:04.8]} 38. g3 {[%clk 0:00:17]} 38... Kf6
{[%clk 0:00:04.4]} 39. Ke3 {[%clk 0:00:14.8]} 39... Be6 {[%clk 0:00:02.9]} 40.
e5+ {[%clk 0:00:14.6]} 40... Kg7 {[%clk 0:00:03.3]} 41. Kd4 {[%clk 0:00:14.7]}
41... Kf8 {[%clk 0:00:03.5]} 42. Be4 {[%clk 0:00:14.2]} 42... Rc4+ {[%clk
0:00:03.7]} 43. Ke3 {[%clk 0:00:13.1]} 43... Rb4 {[%clk 0:00:04.6]} 44. Bd3
{[%clk 0:00:05.6]} 44... Rxb2 {[%clk 0:00:04.7]} 45. Kd4 {[%clk 0:00:06.3]}
45... Rb4+ {[%clk 0:00:04.2]} 46. Kc3 {[%clk 0:00:05.7]} 46... Rb3+ {[%clk
0:00:04.6]} 47. Kd4 {[%clk 0:00:06.3]} 47... Rb4+ {[%clk 0:00:04.8]} 48. Kc3
{[%clk 0:00:06.6]} 48... Rb3+ {[%clk 0:00:05.1]} 49. Kd2 {[%clk 0:00:07.3]}
49... Rb2+ {[%clk 0:00:04.6]} 50. Ke3 {[%clk 0:00:07.6]} 50... Rb3 {[%clk
0:00:04.4]} 51. Kd4 {[%clk 0:00:07.5]} 51... Rb4+ {[%clk 0:00:04.5]} 1/2-1/2

[Event "*** Titled Tuesday Blitz"]
[Site "Chess.com"]
[Date "2021.03.09"]
[Round "6"]
[White "VladimirBugayev"]
[Black "WiktoriaPOL"]
[Result "0-1"]
[WhiteElo "2261"]
[BlackElo "2080"]
[TimeControl "180+1"]
[EndTime "11:11:38 PST"]
[Termination "WiktoriaPOL won on time"]

1. e4 {[%clk 0:03:00.9]} 1... c5 {[%clk 0:02:59.8]} 2. Nc3 {[%clk 0:02:59.6]}
2... Nc6 {[%clk 0:02:58.3]} 3. Bb5 {[%clk 0:02:59.4]} 3... Nd4 {[%clk
0:02:58.2]} 4. Nf3 {[%clk 0:02:59.9]} 4... g6 {[%clk 0:02:57.6]} 5. Nxd4 {[%clk
0:02:58.3]} 5... cxd4 {[%clk 0:02:57.3]} 6. Ne2 {[%clk 0:02:58.8]} 6... Bg7
{[%clk 0:02:56.5]} 7. O-O {[%clk 0:02:59.3]} 7... a6 {[%clk 0:02:56.5]} 8. Ba4
{[%clk 0:02:58.2]} 8... b5 {[%clk 0:02:55.8]} 9. Bb3 {[%clk 0:02:58.2]} 9... Bb7
{[%clk 0:02:55.9]} 10. d3 {[%clk 0:02:56.5]} 10... e6 {[%clk 0:02:56.2]} 11. a4
{[%clk 0:02:56.3]} 11... b4 {[%clk 0:02:55.4]} 12. a5 {[%clk 0:02:51.3]} 12...
Ne7 {[%clk 0:02:54.4]} 13. f3 {[%clk 0:02:49.7]} 13... d5 {[%clk 0:02:53.8]} 14.
Qe1 {[%clk 0:02:48.9]} 14... O-O {[%clk 0:02:50.9]} 15. Qxb4 {[%clk 0:02:47.2]}
15... Rb8 {[%clk 0:02:41]} 16. Bf4 {[%clk 0:02:15]} 16... e5 {[%clk 0:02:39.4]}
17. Bg5 {[%clk 0:02:04.7]} 17... Re8 {[%clk 0:02:23.5]} 18. Qd2 {[%clk
0:01:50.6]} 18... f6 {[%clk 0:02:16.7]} 19. Bh6 {[%clk 0:01:48.8]} 19... Bxh6
{[%clk 0:02:09.4]} 20. Qxh6 {[%clk 0:01:46.6]} 20... Qd6 {[%clk 0:01:58.1]} 21.
h4 {[%clk 0:01:44.8]} 21... Kh8 {[%clk 0:01:55.5]} 22. Qd2 {[%clk 0:01:18.4]}
22... f5 {[%clk 0:01:52.7]} 23. exd5 {[%clk 0:00:53.9]} 23... Bxd5 {[%clk
0:01:51.5]} 24. Ba4 {[%clk 0:00:49.7]} 24... Rec8 {[%clk 0:01:46.2]} 25. b3
{[%clk 0:00:38.8]} 25... Bc6 {[%clk 0:01:40.8]} 26. h5 {[%clk 0:00:36.9]} 26...
Kg7 {[%clk 0:01:36.6]} 27. Kf2 {[%clk 0:00:31.3]} 27... Nd5 {[%clk 0:01:27.8]}
28. hxg6 {[%clk 0:00:27.1]} 28... hxg6 {[%clk 0:01:27.2]} 29. Qg5 {[%clk
0:00:24.9]} 29... Qf6 {[%clk 0:01:24.5]} 30. Qxf6+ {[%clk 0:00:19.6]} 30... Kxf6
{[%clk 0:01:22.9]} 31. Bxc6 {[%clk 0:00:20]} 31... Rxc6 {[%clk 0:01:22.4]} 32.
Rfc1 {[%clk 0:00:20.6]} 32... Rbc8 {[%clk 0:01:17.5]} 33. f4 {[%clk 0:00:20.5]}
33... Rxc2 {[%clk 0:01:11.2]} 34. fxe5+ {[%clk 0:00:20]} 34... Kxe5 {[%clk
0:01:10.8]} 35. Rxc2 {[%clk 0:00:19.6]} 35... Rxc2 {[%clk 0:01:10.2]} 36. Ke1
{[%clk 0:00:18.4]} 36... Rb2 {[%clk 0:01:04]} 37. Ra4 {[%clk 0:00:17.4]} 37...
Rxb3 {[%clk 0:00:56]} 38. Nxd4 {[%clk 0:00:16.5]} 38... Rxd3 {[%clk 0:00:53.8]}
39. Nc6+ {[%clk 0:00:16.2]} 39... Kd6 {[%clk 0:00:50.4]} 40. Nb8 {[%clk
0:00:15.7]} 40... Nc7 {[%clk 0:00:44]} 41. Rc4 {[%clk 0:00:13.3]} 41... Rd5
{[%clk 0:00:32.7]} 42. Rc6+ {[%clk 0:00:12.8]} 42... Ke7 {[%clk 0:00:19.8]} 43.
Rxc7+ {[%clk 0:00:12.5]} 43... Kd8 {[%clk 0:00:19.4]} 44. Ra7 {[%clk 0:00:09]}
44... Kc8 {[%clk 0:00:14.7]} 45. Nc6 {[%clk 0:00:07]} 45... Rc5 {[%clk
0:00:10.1]} 46. Rxa6 {[%clk 0:00:06.8]} 46... Kb7 {[%clk 0:00:09.6]} 47. Rb6+
{[%clk 0:00:07.4]} 47... Kc7 {[%clk 0:00:07.9]} 48. Nd4 {[%clk 0:00:04.9]} 48...
Rxa5 {[%clk 0:00:04.5]} 49. Rxg6 {[%clk 0:00:04.9]} 49... Ra1+ {[%clk
0:00:04.2]} 50. Kf2 {[%clk 0:00:05]} 50... Ra4 {[%clk 0:00:02.8]} 51. Nf3 {[%clk
0:00:03.6]} 51... Kd7 {[%clk 0:00:01.8]} 52. Kg3 {[%clk 0:00:02.6]} 52... f4+
{[%clk 0:00:02]} 53. Kg4 {[%clk 0:00:02.1]} 53... Ke7 {[%clk 0:00:02.4]} 54. Rb6
{[%clk 0:00:01.7]} 54... Kf7 {[%clk 0:00:02.4]} 0-1

[Event "*** Titled Tuesday Blitz"]
[Site "Chess.com"]
[Date "2021.03.09"]
[Round "6"]
[White "anon481216"]
[Black "Szparu"]
[Result "1-0"]
[WhiteElo "2532"]
[BlackElo "2645"]
[TimeControl "180+1"]
[EndTime "11:11:39 PST"]
[Termination "anon481216 won by checkmate"]

1. d4 {[%clk 0:03:00.9]} 1... Nf6 {[%clk 0:02:56.5]} 2. c4 {[%clk 0:03:01.4]}
2... c5 {[%clk 0:02:56.4]} 3. d5 {[%clk 0:03:01]} 3... e6 {[%clk 0:02:56.2]} 4.
Nc3 {[%clk 0:03:01.3]} 4... exd5 {[%clk 0:02:56]} 5. cxd5 {[%clk 0:03:01.7]}
5... d6 {[%clk 0:02:56.6]} 6. Nf3 {[%clk 0:03:01.6]} 6... g6 {[%clk 0:02:56.4]}
7. g3 {[%clk 0:03:02]} 7... Bg7 {[%clk 0:02:56]} 8. Bg2 {[%clk 0:03:02.6]} 8...
O-O {[%clk 0:02:54.9]} 9. O-O {[%clk 0:03:03.5]} 9... a6 {[%clk 0:02:49.8]} 10.
a4 {[%clk 0:03:02.4]} 10... Nbd7 {[%clk 0:02:47.2]} 11. h3 {[%clk 0:02:56.7]}
11... Rb8 {[%clk 0:02:42.3]} 12. a5 {[%clk 0:02:33.3]} 12... b5 {[%clk
0:02:39.6]} 13. axb6 {[%clk 0:02:32.9]} 13... Rxb6 {[%clk 0:02:33.3]} 14. Nd2
{[%clk 0:02:31]} 14... Rb4 {[%clk 0:02:33.1]} 15. Qc2 {[%clk 0:02:21.1]} 15...
Re8 {[%clk 0:02:18.7]} 16. e4 {[%clk 0:02:20]} 16... Nh5 {[%clk 0:02:07.6]} 17.
Kh2 {[%clk 0:02:14.9]} 17... a5 {[%clk 0:01:52.2]} 18. f4 {[%clk 0:02:09.8]}
18... Ba6 {[%clk 0:01:50.7]} 19. Re1 {[%clk 0:02:09.4]} 19... f5 {[%clk
0:01:40.5]} 20. Nf3 {[%clk 0:01:51]} 20... Bxc3 {[%clk 0:01:07.9]} 21. Qxc3
{[%clk 0:01:48.9]} 21... fxe4 {[%clk 0:01:03.3]} 22. Ng5 {[%clk 0:01:46.7]}
22... Nhf6 {[%clk 0:00:57.9]} 23. Ne6 {[%clk 0:01:22.8]} 23... Qb6 {[%clk
0:00:57.2]} 24. g4 {[%clk 0:01:16.2]} 24... a4 {[%clk 0:00:43]} 25. Ra3 {[%clk
0:00:56.2]} 25... Rd4 {[%clk 0:00:35.1]} 26. Nxd4 {[%clk 0:00:52]} 26... cxd4
{[%clk 0:00:35.7]} 27. Qc6 {[%clk 0:00:50.9]} 27... Qxc6 {[%clk 0:00:26.6]} 28.
dxc6 {[%clk 0:00:50.7]} 28... Nc5 {[%clk 0:00:27.5]} 29. f5 {[%clk 0:00:42.4]}
29... Nd5 {[%clk 0:00:25.9]} 30. Bh6 {[%clk 0:00:30.5]} 30... Nb4 {[%clk
0:00:23]} 31. Rd1 {[%clk 0:00:16.3]} 31... Nxc6 {[%clk 0:00:22.5]} 32. Bf4
{[%clk 0:00:14.2]} 32... d5 {[%clk 0:00:21.6]} 33. Bd6 {[%clk 0:00:12.7]} 33...
Nd3 {[%clk 0:00:12.2]} 34. Rxa4 {[%clk 0:00:12.3]} 34... Bc4 {[%clk 0:00:12.5]}
35. b4 {[%clk 0:00:08.7]} 35... Nb2 {[%clk 0:00:11.9]} 36. Raa1 {[%clk
0:00:07.9]} 36... Nxd1 {[%clk 0:00:11.9]} 37. Rxd1 {[%clk 0:00:08.4]} 37... e3
{[%clk 0:00:07.8]} 38. Kg3 {[%clk 0:00:06.7]} 38... e2 {[%clk 0:00:07.4]} 39.
Ra1 {[%clk 0:00:05.9]} 39... e1=Q+ {[%clk 0:00:06.9]} 40. Rxe1 {[%clk
0:00:04.8]} 40... Rxe1 {[%clk 0:00:07.8]} 41. b5 {[%clk 0:00:05.3]} 41... Nd8
{[%clk 0:00:04.5]} 42. b6 {[%clk 0:00:05.1]} 42... Rb1 {[%clk 0:00:03.7]} 43.
Bc7 {[%clk 0:00:05]} 43... Nb7 {[%clk 0:00:03.9]} 44. f6 {[%clk 0:00:05]} 44...
Rb3+ {[%clk 0:00:04.1]} 45. Kf4 {[%clk 0:00:05]} 45... Kf7 {[%clk 0:00:04.7]}
46. g5 {[%clk 0:00:05.1]} 46... Nc5 {[%clk 0:00:03.3]} 47. Ke5 {[%clk
0:00:04.8]} 47... Nd7+ {[%clk 0:00:03.8]} 48. Kd6 {[%clk 0:00:04.2]} 48... Nxb6
{[%clk 0:00:03.2]} 49. h4 {[%clk 0:00:05.1]} 49... Nc8+ {[%clk 0:00:03.6]} 50.
Kd7 {[%clk 0:00:05.1]} 50... Na7 {[%clk 0:00:04.1]} 51. Bh3 {[%clk 0:00:05.4]}
51... Nb5 {[%clk 0:00:03.9]} 52. Be6+ {[%clk 0:00:04.9]} 52... Kf8 {[%clk
0:00:04.3]} 53. Bd8 {[%clk 0:00:04.7]} 53... Nd6 {[%clk 0:00:01.5]} 54. Be7#
{[%clk 0:00:04.9]} 1-0